Cogmind - Beta 13 X1 @@@ ROGUE MODE // 2023.06.21 @ 22:01:46 Player: Plexion Result: Self-destructed Performance ------------- Evolutions (2) 1000 Regions Visited (3) 600 Robots Destroyed (29) 145 Value Destroyed (931) 931 Prototype IDs (11) 220 Alien Tech Used (0) 0 Bonus (303) 303 TOTAL SCORE: 3199 Bonus ------- Follower Combat Kills 303 Cogmind --------- Core Integrity 550/550 Matter 300/300 Energy 180/180 System Corruption 0% Temperature Cool (0) Movement Treading (164) Location -8/Materials Parts ------- > --- POWER (1) -------- Meta Core > --- PROPULSION (4+1) - Spiked Treads Spiked Treads Spiked Treads (+) Armored Treads Armored Treads > --- UTILITY (4+1) ---- Large Storage Unit (+) Hardened Heavy Armor Plating Scrap Shield > --- WEAPON (2+1) ----- Small Laser Subdweller Machine Gun (+) Battle Cannon > --- INVENTORY (15) --- Light Ion Engine Hardened Light Armor Plating Hardened Light Armor Plating Gun Armor Scrap Shield Graphene Brace Battle Rifle Subdweller Machine Gun Subdweller Machine Gun Barrage Gun Battle Cannon Mini Grenade Launcher Subdweller Shrapnel Launcher Scrap Shield Fragment (43) Peak State ------------ > --- POWER ------------ Meta Core > --- PROPULSION ------- Spiked Treads Spiked Treads Spiked Treads Armored Treads Armored Treads > --- UTILITY ---------- Large Storage Unit Hardened Heavy Armor Plating Scrap Shield > --- WEAPON ----------- Small Laser Subdweller Machine Gun Battle Cannon > --- INVENTORY -------- Light Ion Engine Gun Armor Scrap Shield Graphene Brace V3-11A's Pendant Battle Rifle Subdweller Machine Gun Subdweller Machine Gun Barrage Gun Battle Cannon Mini Grenade Launcher Subdweller Shrapnel Launcher Scrap Shield Fragment [Rating: 47] Favorites ----------- Power Meta Core Engine Ion Engine Power Core Meta Core Propulsion Spiked Treads Treads Spiked Treads Leg Makeshift Leg Utility Large Storage Unit Device V3-11A's Pendant Storage Large Storage Unit Protection Scrap Shield Weapon Small Laser Energy Gun Small Laser Ballistic Gun Subdweller Machine Gun Ballistic Cannon Battle Cannon Launcher Grenade Launcher Build | -11 -10 -10 -8 ------- Run | Jun Mat Sub Mat Slots Evolved 4 | . . . 4 Power . | . . . . Propulsion 2 | . . . 2 Utility 2 | . . . 2 Weapon . | . . . . Parts Attached 42 | 6 5 26 5 Power 6 | 1 1 4 . Engine 5 | 1 1 3 . Core 1 | . . 1 . Reactor . | . . . . Propulsion 8 | 2 . 4 2 Treads 7 | 2 . 3 2 Leg 1 | . . 1 . Wheel . | . . . . Hover . | . . . . Flight . | . . . . Utility 14 | 1 1 9 3 Device 5 | . . 5 . Storage 3 | 1 1 1 . Processor . | . . . . Hackware . | . . . . Protection 6 | . . 3 3 Artifact . | . . . . Weapon 14 | 2 3 9 . Energy Gun 5 | 1 . 4 . Energy Cannon . | . . . . Ballistic Gun 4 | 1 2 1 . Ballistic Cannon 2 | . . 2 . Launcher 3 | . 1 2 . Special Weapon . | . . . . Impact Weapon . | . . . . Slashing Weapon . | . . . . Piercing Weapon . | . . . . Special Melee Weapon . | . . . . Unidentified Prototypes 1 | . . 1 . Parts Lost 7 | . . 7 . Power 1 | . . 1 . Propulsion 2 | . . 2 . Utility . | . . . . Weapon 4 | . . 4 . Highest Loss Streak 2 | . . 2 . To Critical Strikes . | . . . . Average Slot Usage (%) 84 | . 83 84 81 Engine 5 | . 13 4 . Core 5 | . . 6 7 Treads 27 | . 28 26 31 Device 5 | . . 7 . Storage 10 | . 14 9 7 Protection 3 | . . 2 13 Energy Gun 9 | . 9 10 7 Ballistic Gun 6 | . 16 5 7 Ballistic Cannon 6 | . . 7 7 Launcher 2 | . 1 3 . Naked Turns . | . . . . Heaviest Build 72 | 13 28 52 72 Greatest Support 100 | 40 40 60 100 Greatest Overweight (x) 1 | . . 1 1 Average Overweight (x) . | . . . . Largest Inventory Capacity 15 | 8 15 15 15 Average Capacity 13 | 6 9 13 15 Most Carried 15 | 2 9 15 15 Average Carried 9 | . 5 9 14 Final Capacity 15 | 8 15 15 15 Final Carried 15 | 2 7 15 15 Class Distribution -------------------- 47% | Mutant 20% | Subdweller-Gunner 15% | Subdweller-Skirmisher 9% | Subdweller-Tank 3% | Subdweller-Mutant Dominant Class ---------------- Mutant | -10/Materials Mutant | -10/Subcaves Subdweller-Tank | -8/Materials Resources | -11 -10 -10 -8 ----------- Run | Jun Mat Sub Mat Matter Collected 1229 | 173 198 700 158 Remotely . | . . . . Salvage Created 920 | . 313 289 318 Parts 53 | . 20 16 17 Haulers Intercepted . | . . . . Recyclers Shooed . | . . . . Parts Field Recycled . | . . . . Retrieved Matter . | . . . . Parts Self-Destructed 9 | . . 9 . Prevented . | . . . . Kills | -11 -10 -10 -8 ------- Run | Jun Mat Sub Mat Combat Hostiles Destroyed 25 | . 11 9 5 Guns 11 | . 7 2 2 Cannons 4 | . . 1 3 AOE 10 | . 4 6 . Classes Destroyed 6 | . 4 2 . Recycler 2 | . 1 . 1 Watcher 2 | . 1 . 1 Swarmer 6 | . 6 . . Grunt 11 | . 5 1 5 Artisan 1 | . . 1 . Subdweller 8 | . . 8 . Best Kill Streak 5 | . 5 2 3 Combat Bots Only 5 | . 5 2 3 Max Kills in Single Turn 3 | . 3 1 1 Gunslinging . | . . . . Exploded 2 | . 2 1 . Melee . | . . . . Uniques/NPCs Destroyed . | . . . . Combat | -11 -10 -10 -8 -------- Run | Jun Mat Sub Mat Damage Taken 1578 | . 257 1209 112 Core 196 | . 41 155 . Absorbed by Shields . | . . . . Core Remaining (%) 60 | 100 . 21 . Volleys Fired 89 | . 27 47 15 Largest 3 | . 2 3 3 Hottest 109 | . 60 109 109 Shots Fired 170 | . 48 81 41 Gun 117 | . 42 49 26 Cannon 29 | . . 14 15 Launcher 24 | . 6 18 . Special . | . . . . Kinetic 91 | . 28 33 30 Thermal 24 | . . 13 11 Explosive 24 | . 6 18 . Electromagnetic 31 | . 14 17 . Robot Hit Streak 17 | . 12 17 11 Robot Miss Streak 2 | . 2 1 2 Penetration Max . | . . . . Secondary Targets . | . . . . Shots Hit Robots 102 | . 30 46 26 Core Hits 54 | . 20 20 14 Critical Kills . | . . . . Critical Parts Destroyed 1 | . . . 1 Critical Strikes 1 | . . . 1 Destroy 1 | . . . 1 Melee Attacks . | . . . . Impact . | . . . . Slashing . | . . . . Piercing . | . . . . Sneak Attacks . | . . . . Combat Hostiles . | . . . . Follow-up Attacks . | . . . . Damage Inflicted 2497 | . 721 1247 529 Guns 859 | . 300 294 265 Cannons 326 | . . 68 258 Explosions 1306 | . 421 885 . Melee . | . . . . Ramming 6 | . . . 6 Kinetic 840 | . 185 200 455 Thermal 123 | . 43 12 68 Explosive 1263 | . 378 885 . Electromagnetic 265 | . 115 150 . Impact . | . . . . Slashing . | . . . . Piercing . | . . . . Highest Corruption . | . . . . Average Corruption . | . . . . Corruption Purged . | . . . . Corruption Blocked . | . . . . Overload Shots . | . . . . Overflow Damage . | . . . . Projectiles . | . . . . Explosions . | . . . . Melee . | . . . . Knockbacks 1 | . . 1 . Impact . | . . . . Kinetic 1 | . . 1 . Secondary . | . . . . Self-Inflicted Damage 47 | . 38 9 . Shots 2 | . 1 1 . Rammed 1 | . . . 1 Targets Rammed 2 | . . . 2 Kicked . | . . . . Crushed 1 | . . . 1 Highest Temperature 353 | . 102 . 353 Average Temperature 93 | . 37 . 118 Received Heat Transfer 303 | . 84 156 63 Effects 1 | . . . 1 Energy Bleed 1 | . . . 1 Siege Activations . | . . . . Robots Corrupted . | . . . . Combat Hostiles . | . . . . Parts Fried 5 | . 1 4 . Impact Corruptions . | . . . . Robots Melted . | . . . . Combat Hostiles . | . . . . Parts Melted . | . . . . Heat Transferred 225 | . 50 25 150 Parts Sabotaged . | . . . . Parts Stolen . | . . . . Parts Stripped . | . . . . Power Chain Reactions 1 | . 1 . . Missiles Intercepted . | . . . . Alert | -11 -10 -10 -8 ------- Run | Jun Mat Sub Mat Peak Influence 340 | . 340 . 325 Initial . | . . . . Average 142 | . 135 . 180 Maximum Alert Level 1 | . 1 . 1 Low Security (%) 69 | 100 88 . 37 Level 1 30 | . 11 . 62 Level 2 . | . . . . Level 3 . | . . . . Level 4 . | . . . . Level 5 . | . . . . High Security . | . . . . Max Security . | . . . . Squads Dispatched 3 | . 1 . 2 Investigation . | . . . . Extermination . | . . . . Reinforcement 3 | . 1 . 2 Assault . | . . . . Garrison . | . . . . Intercept . | . . . . Searches Triggered . | . . . . Construction Impeded . | . . . . Haulers Reinforced . | . . . . Active Scanning Responses . | . . . . Cargo Convoy Interrupts . | . . . . Stealth | -11 -10 -10 -8 --------- Run | Jun Mat Sub Mat Distress Signals 2 | . 1 . 1 Communications Jammed . | . . . . Distress Signals . | . . . . Times Spotted 51 | . 19 19 13 Peak Tracking Total 5 | . 5 3 3 Tactical Retreats 1 | . . . 1 Traps | -11 -10 -10 -8 ------- Run | Jun Mat Sub Mat Traps Triggered 6 | . 1 5 . Indirectly . | . . . . Trap Hack Attempts . | . . . . Triggered . | . . . . Disarmed . | . . . . Reprogrammed . | . . . . Reused . | . . . . Traps Extracted . | . . . . Installed . | . . . . Triggered . | . . . . Most Traps Carried 1 | . . 1 . Machines | -11 -10 -10 -8 ---------- Run | Jun Mat Sub Mat Machines Disabled 4 | . 1 1 2 Max in Single Turn 1 | . 1 1 . Machines Repaired . | . . . . Machines Sabotaged . | . . . . Overloaded Fab Kills . | . . . . Hacking | -11 -10 -10 -8 --------- Run | Jun Mat Sub Mat Machines Accessed 3 | . 1 2 . Terminals 1 | . 1 . . Fabricators . | . . . . Repair Stations . | . . . . Recycling Units . | . . . . Scanalyzers . | . . . . Garrison Access . | . . . . Total Hacks 9 | . 4 5 . Successful 6 | . 1 5 . Failed 3 | . 3 . . Catastrophic 1 | . 1 . . Database Lockouts . | . . . . Manual 4 | . 4 . . Terminals 4 | . 4 . . Fabricators . | . . . . Repair Stations . | . . . . Recycling Units . | . . . . Scanalyzers . | . . . . Garrison Access . | . . . . Terminal Hacks 6 | . 1 5 . Record 4 | . . 4 . Zone Layout 1 | . 1 . . Derelict Proto ID Bank 1 | . . 1 . Fabricator Hacks . | . . . . Repair Station Hacks . | . . . . Recycling Unit Hacks . | . . . . Scanalyzer . | . . . . Garrison Access Hacks . | . . . . Unauthorized Hacks . | . . . . Terminals . | . . . . Fabricators . | . . . . Repair Stations . | . . . . Recycling Units . | . . . . Scanalyzers . | . . . . Garrison Access . | . . . . Data Cores Recovered . | . . . . Used . | . . . . Hacking Detections 1 | . 1 . . Full Trace Events . | . . . . Feedback Events . | . . . . Feedback Blocked . | . . . . Robot Schematics Acquired . | . . . . Robots Built . | . . . . Authchips . | . . . . Time . | . . . . Total Robot Build Rating . | . . . . Part Schematics Acquired . | . . . . Parts Built . | . . . . Authchips . | . . . . Time . | . . . . Total Part Build Rating . | . . . . Parts Repaired . | . . . . Time . | . . . . Parts Recycled . | . . . . Recycled Matter . | . . . . Retrieved Matter . | . . . . Retrieved Components . | . . . . Parts Scanalyzed . | . . . . Part Schematics Acquired . | . . . . Parts Damaged . | . . . . Bothacking | -11 -10 -10 -8 ------------ Run | Jun Mat Sub Mat Used RIF Installer . | . . . . Robots Hacked . | . . . . Non-combat . | . . . . Combat . | . . . . Robot Hacks Applied . | . . . . Relay Couplers Released . | . . . . Fabnet Peak Effective % . | . . . . Robots Rewired . | . . . . Allies Hacked . | . . . . Hacks Repelled . | . . . . Allies | -11 -10 -10 -8 -------- Run | Jun Mat Sub Mat Total Allies 7 | . . 7 . Largest Group 3 | . . 3 3 Highest-Rated Group 57 | . . 57 57 Highest-Rated Ally 19 | . . 19 19 Total Orders . | . . . . Ally Attacks 69 | . . 18 51 Total Damage 1177 | . . 283 894 Kills 11 | . . 4 7 Allies Corrupted . | . . . . Allies Melted . | . . . . Intel | -11 -10 -10 -8 ------- Run | Jun Mat Sub Mat Robot Analysis Total . | . . . . Derelict Logs Recovered 1 | . . 1 . Drone Launches . | . . . . Drone Recoveries . | . . . . Exploration | -11 -10 -10 -8 ------------- Run | Jun Mat Sub Mat Turns Passed 4190 | 74 501 3253 362 Spaces Moved 2177 | 43 261 1709 164 Core 4 | 4 . . . Treads 2132 | 39 261 1668 164 Legs 41 | . . 41 . Wheels . | . . . . Hover . | . . . . Flight . | . . . . Fastest Speed 50 | 50 160 160 160 Average Speed 171 | 149 160 173 174 Slowest Speed 260 | 160 160 260 260 Overloaded Moves . | . . . . Propulsion Burnouts . | . . . . Robots Hopped . | . . . . Cave-ins Triggered . | . . . . Exploration Rate (%) 43 | 4 56 92 20 Regions Visited 3 Branch Regions 1 Pre-discovered Areas 1 | . . 1 . Known Exits Taken . | . . . . Unknown Exits Taken 3 | 1 1 1 . Scrap Searched 14 | . . 14 . Spaces Dug 21 | . 8 13 . Terrain Destroyed 78 | . 30 45 3 Melee . | . . . . Projectile 3 | . . . 3 AOE 75 | . 30 45 . Terrain Rammed . | . . . . Walls Destroyed . | . . . . Machines Disabled . | . . . . Actions | -11 -10 -10 -8 --------- Run | Jun Mat Sub Mat Total 2478 | 50 300 1921 207 Wait 110 | . . 100 10 Move 2174 | 42 260 1708 164 Hop . | . . . . Pick Up 29 | 2 5 17 5 Fast Attach 18 | 6 2 7 3 Attach 16 | . 1 13 2 Detach 12 | . 2 8 2 Swap 8 | . 2 6 . Drop 16 | . 1 12 3 Fire 89 | . 27 47 15 Melee . | . . . . Ram . | . . . . Kick . | . . . . Crush 2 | . . . 2 Escape Stasis . | . . . . Rewire . | . . . . Trap . | . . . . Miscellaneous 4 | . . 3 1 Route ------- -11/Junkyard -10/Materials (discovered 4 exits: [*Mat] / [*Min x2] / *Sub) -10/Subcaves (discovered 2 exits: [*Mat] / [*Mat]) -8/Materials History --------- Turn | Location | Event 22 | -11/Junkyard | Discovered new exit (range 15) 75 | -11/Junkyard | Entered Materials 181 | -10/Materials | Discovered new exit (range 6) 278 | -10/Materials | Discovered new exit (range 10) 304 | -10/Materials | Build established: Mutant 419 | -10/Materials | Discovered new exit (range 10) 550 | -10/Materials | Discovered new exit (range 11) 576 | -10/Materials | Entered Subcaves 578 | -10/Subcaves | Learned Materials stockpile data 886 | -10/Subcaves | Discovered new exit (range 11) 889 | -10/Subcaves | Learned location of Zion (-7) 889 | -10/Subcaves | Met a Zionite searching for "candidates" 992 | -10/Subcaves | Shifting Twisted Machinery released Spk. Treads 995 | -10/Subcaves | Shifting Twisted Machinery released Sub. Beam Cannon 1036 | -10/Subcaves | Ambushed by Subdwellers from Twisted Machinery 1165 | -10/Subcaves | Core integrity fell below 50% 1468 | -10/Subcaves | Shifting Twisted Machinery released Battle Rifle 1490 | -10/Subcaves | Visited Clippyterm 1519 | -10/Subcaves | Shifting Twisted Machinery released Scrap Shield 1700 | -10/Subcaves | Visited 4L-MR0's lab 1723 | -10/Subcaves | Found Meta Core 1725 | -10/Subcaves | Attached Meta Core, gained temporary slots: Propulsion, Utility, Weapon 2312 | -10/Subcaves | Visited triangular shrine 2322 | -10/Subcaves | Found Prototype Device 2322 | -10/Subcaves | Identified V3-11A's Pendant 2327 | -10/Subcaves | Befriended Subdweller 2457 | -10/Subcaves | Befriended Subdweller 2462 | -10/Subcaves | Befriended Subdweller 2507 | -10/Subcaves | Befriended Subdweller 2583 | -10/Subcaves | Disturbed a concealed Subdweller 2627 | -10/Subcaves | A swath of the cavern ceiling suddenly collapsed 2645 | -10/Subcaves | Build established: Subdweller-Skirmisher 2751 | -10/Subcaves | Shifting Twisted Machinery released Battle Cannon 2761 | -10/Subcaves | Shifting Twisted Machinery released Sub. Laser 2938 | -10/Subcaves | Discovered new exit (range 16) 3257 | -10/Subcaves | Build established: Subdweller-Gunner 3497 | -10/Subcaves | A Subdweller sparked back to life 3497 | -10/Subcaves | A Subdweller sparked back to life 3497 | -10/Subcaves | A Subdweller sparked back to life 3502 | -10/Subcaves | Befriended Subdweller 3502 | -10/Subcaves | Befriended Subdweller 3502 | -10/Subcaves | Befriended Subdweller 3829 | -10/Subcaves | Entered Materials 3829 | -8/Materials | Accompanied by 3 allies 3829 | -8/Materials | Evolved 4 slots: Propulsion x2, Utility x2 4122 | -8/Materials | Found Gun Armor 4142 | -8/Materials | Build established: Subdweller-Tank 4191 | -8/Materials | Self-destructed Last Messages --------------- 04116_ R-06 Scavenger collects Imp. Heat Sink. 04117_ R-06 Scavenger collects Particle Gun. 04118_ Slammed into T-07 Excavator. 04119_ R-06 Scavenger collects Lgt. Nuclear Core. 04121_ Dropped Cobbler Unit. 04122_ R-06 Scavenger collects Aluminum Leg. 04122_ Acquired Gun Armor. 04123_ R-06 Scavenger collects Imp. Heat Sink. 04128_ U-05 Engineer builds a Wall. 04141_ Acquired Hrd. Light Armor Plating. 04144_ Dropped V3-11A's Pendant. 04146_ Acquired Hrd. Light Armor Plating. 04155_ Crushed R-06 Scavenger. 04155_ R-06 Scavenger destroyed. 04156_ Acquired 29 matter. 04162_ G-47 Trooper suffers critical hit (Destroy). 04162_ Destroyed Aluminum Leg. 04162_ G-47 Trooper destroyed. 04165_ Acquired 3 matter. 04166_ Acquired 11 matter. Map ----- +----------------------------------------------------+ | ?????????????????????????????? | | ?????????????????????????????? | | ?????????????????????????????? | | ?????????????????????????????? | | ?????????????????????????????? | | ?????????????????????????????? | | ?????????????????????????????? | | ?????????????????????????????? | | ?????????????????????????????? | | ??????????? ??????????? ???? | | ??????????? #?????????? ???? | | ??????????# #?????????? ???? | | ??????????# ?????????? ???? | | ??????????# #?????????? ???? | | ??????????# #?????????? ???? | | ??????????# #?????????? ???? | | ??????????# #?????????# #??? | | ??????????# #?????????# #??? | | ??????????# #?????????# #??? | | ??????????# #?????????# #??? | | ??????????# #?????????# #??? | | ########### #?????????u #??? | | !!! # #?????????# #??? | | """ !! #^^ ########### #??? | | """ !! +%![ #??? | | """ #* ###########@#??? | | # %# #a ?? | | #####+##### % # """ """ # #? | | ??### ##### =# """ """ # #? | | % %%= # """ """ # #? | | ?????###+## !%+ """ """ #= #? | | ?????# = # # """ """ # #? | | ?????# # # # #? | | ?????# ?# #] !#####? | | ?????# ?# ###+#######????? | | ?????# ??# #?# #??########? | | ?????# ???# #?# #??# # | | ?????# ???# %#?# #### # | | ?????#????# #?# + = # | | ??????????# #?# #### # | | ?????????##% #?# #?########## | | ?????????## %#?# #?# ] # | | ????#######% %### #?# """ # | | ????# ^ // % ### """ # | | ????# // # """ # | | ????+ / / # | | ????# #"S # | | ????## ! ##+###""" # | | ?????# =## ## "" # | | ?????# %%"" ## = # | +----------------------------------------------------+ Best States ------------- Heat Dissipation 31 Energy Generation 17 Energy Capacity 250 Matter Stores 300 Matter Capacity 300 Sight Range 21 Terrain Scan Density 10 Armor Coverage 1600 Evasion (%) 40 Recoil Reduction 5 Item Schematics ----------------- None Robot Schematics ------------------ None Fabricated ------------ Nothing Alien Tech Used ----------------- None Achievements -------------- None Challenges ------------ None Game ------ Seed QuantumDrainedTube Manual? 0 Play Time 00:25:31 Cumulative 408.6 hours Start 2023.06.21 @ 21:35:53 End 2023.06.21 @ 22:01:46 Sessions 1 Manual Loads 0 Difficulty Rogue Special Mode None Game No. 489 Rogue 402 Adventurer 87 Explorer 0 Win Type - Total 21 Types 7/0/12/1/1/0/0/0/0 Lore% 84 Gallery% 90 Achievement% 73 Wizard Run 0 Options --------- ASCII 0 Keyboard 1 Movement Numpad Keybinds 0 Fullscreen 1 Font 18/SmallcapsGlow Map View 76x50 Tactical HUD 1 Map Filters NONE Filters NONE Steam 1 RUN: cdf8516c-b225-42ba-b9c1-345f1625ed79